Cogmind - Beta 16.1 *** ADVENTURER MODE // 2026.03.08 @ 15:14:17 Player: misiasty3 Result: Self-destructed Performance ------------- Evolutions (1) 500 Regions Visited (4) 800 Robots Destroyed (82) 410 Value Destroyed (1807) 1807 Prototype IDs (6) 120 Alien Tech Used (0) 0 Bonus (0) 0 TOTAL SCORE: 3637 Bonus ------- None Cogmind --------- Core Integrity 289/400 Matter 300/300 Energy 280/280 System Corruption 0% Temperature Cool (0) Movement Treading (240) Ox1 Location -9/Storage Parts ------- > --- POWER (1) -------- Heavy Ion Engine > --- PROPULSION (2) --- Light Treads Light Treads > --- UTILITY (4) ------ Cooling System Large Storage Unit Seismic Detector Medium Armor Plating > --- WEAPON (2) ------- Shotgun Improved Assault Rifle > --- INVENTORY (15) --- Light Ion Engine Light Nuclear Core Aluminum Leg Aluminum Leg Improved Heat Sink Huge Storage Unit Light Armor Plating Medium Armor Plating Medium Laser Beam Cannon Shotgun Improved Assault Rifle Rocket Launcher Peak State ------------ > --- POWER ------------ Light Nuclear Core > --- PROPULSION ------- Light Treads Light Treads > --- UTILITY ---------- Improved Heat Sink Large Storage Unit Seismic Detector Medium Armor Plating > --- WEAPON ----------- Shotgun Shotgun > --- INVENTORY -------- Light Ion Engine Heavy Ion Engine Light Treads Aluminum Leg Aluminum Leg Wheel Huge Storage Unit Seismic Detector Medium Armor Plating Medium Armor Plating EM Pulse Gun Medium Laser Beam Cannon Assault Rifle Rocket Launcher [Rating: 18] Favorites ----------- Power Ion Engine Engine Ion Engine Power Core Light Nuclear Core Propulsion Light Treads Treads Light Treads Leg Aluminum Leg Utility Large Storage Unit Device Seismic Detector Storage Large Storage Unit Protection Medium Armor Plating Weapon Assault Rifle Energy Cannon Beam Cannon Ballistic Gun Assault Rifle Build | -11 -10 -10 -9 -9 ------- Run | Yrd Mat Min Mat Sto Slots Evolved 2 | . . . 2 . Power . | . . . . . Propulsion . | . . . . . Utility 2 | . . . 2 . Weapon . | . . . . . Parts Attached 31 | 7 7 1 8 8 Power 5 | 1 1 . 2 1 Engine 3 | 1 1 . . 1 Core 2 | . . . 2 . Reactor . | . . . . . Propulsion 8 | 2 2 . 2 2 Treads 6 | 2 . . 2 2 Leg 2 | . 2 . . . Wheel . | . . . . . Hover . | . . . . . Flight . | . . . . . Utility 9 | 2 2 1 2 2 Device 3 | . . 1 1 1 Storage 4 | 2 2 . . . Processor . | . . . . . Hackware . | . . . . . Protection 2 | . . . 1 1 Artifact . | . . . . . Weapon 9 | 2 2 . 2 3 Energy Gun . | . . . . . Energy Cannon 3 | . 2 . . 1 Ballistic Gun 6 | 2 . . 2 2 Ballistic Cannon . | . . . . . Launcher . | . . . . . Special Weapon . | . . . . . Impact Weapon . | . . . . . Slashing Weapon . | . . . . . Piercing Weapon . | . . . . . Special Melee Weapon . | . . . . . Unidentified Prototypes 3 | . . . . 3 Parts Lost 4 | . 1 . 1 2 Power 1 | . . . 1 . Propulsion 1 | . . . . 1 Utility 2 | . 1 . . 1 Weapon . | . . . . . Highest Loss Streak 1 | . 1 . 1 1 To Critical Strikes . | . . . . . Average Backups 12 | 3 11 14 13 13 Power 1 | . 1 1 1 2 Propulsion 3 | 2 4 4 3 2 Utility 3 | . 2 4 3 3 Weapon 4 | . 3 5 5 5 Tool/Special . | . . . . . Unused Backups 11 | . . 1 3 7 Power . | . . . . . Propulsion 2 | . . . 1 1 Utility 4 | . . 1 . 3 Weapon 5 | . . . 2 3 Tool/Special . | . . . . . Average Slot Usage (%) 92 | . 90 87 93 99 Engine 8 | . 13 14 2 4 Core 3 | . . . 6 6 Treads 17 | . 22 . 17 21 Leg 7 | . 5 28 4 . Device 10 | . . 1 19 22 Storage 15 | . 20 14 14 11 Protection 4 | . . . 4 11 Energy Cannon 4 | . 3 14 6 . Ballistic Gun 20 | . 24 14 15 22 Peak Build Rating 18 | 7 8 8 18 18 Average Rating 11 | 5 7 7 13 17 On Entrance 8 | . 7 7 8 18 Avg Prop Armor Cover (%) . | . . . . . Naked Turns . | . . . . . Heaviest Build 44 | 19 34 29 40 44 Greatest Support 40 | 40 40 20 40 40 Greatest Overweight (x) 8 | . 8 1 1 2 Average Overweight (x) . | . . 1 . . Largest Inventory Capacity 25 | 8 25 15 15 15 Average Capacity 14 | 7 13 15 15 15 Most Carried 15 | 6 15 15 15 15 Average Carried 12 | 3 11 14 13 13 Final Capacity 15 | 8 15 15 15 15 Final Carried 15 | 6 14 15 15 13 Class Distribution -------------------- 80% | Mutant 19% | Scavenger-Mutant Dominant Class ---------------- Mutant | -10/Materials Mutant | -10/Mines Mutant | -9/Materials Scavenger-Mutant | -9/Storage Resources | -11 -10 -10 -9 -9 ----------- Run | Yrd Mat Min Mat Sto Matter Collected 1508 | 324 128 186 401 469 Remotely . | . . . . . Salvage Created 2528 | 204 530 142 651 1001 Parts 193 | 15 40 18 46 74 Haulers Intercepted 4 | . 1 . 1 2 Recyclers Shooed . | . . . . . Parts Field Recycled . | . . . . . Retrieved Matter . | . . . . . Parts Self-Destructed . | . . . . . Prevented . | . . . . . Parts Restored . | . . . . . Kills | -11 -10 -10 -9 -9 ------- Run | Yrd Mat Min Mat Sto Combat Hostiles Destroyed 52 | . 10 5 18 19 Guns 45 | . 10 1 15 19 Cannons 3 | . . 1 2 . AOE 3 | . . 3 . . Classes Destroyed 10 | 3 4 . 2 1 Worker 8 | 2 . 1 1 4 Builder 1 | . . . . 1 Tunneler 10 | 5 3 2 . . Hauler 4 | . 1 . 1 2 Recycler 3 | 1 1 . . 1 Operator 2 | . . . 1 1 Watcher 2 | . 2 . . . Swarmer 16 | . 6 3 7 . Grunt 25 | . 4 2 7 12 Sentry 11 | . . . 4 7 Best Kill Streak 8 | 8 4 3 4 8 Combat Bots Only 8 | . 3 3 4 8 Max Kills in Single Turn 3 | 1 1 3 1 2 Gunslinging . | . . . . . Exploded 3 | . . 3 . . Melee . | . . . . . Uniques/NPCs Destroyed . | . . . . . Combat | -11 -10 -10 -9 -9 -------- Run | Yrd Mat Min Mat Sto Hostile Shots Fired 207 | . 43 10 80 74 Missed 55 | . 15 2 26 12 Hits 152 | . 28 8 54 62 Projectile 152 | . 28 8 54 62 Damage Taken 1391 | . 236 72 455 628 Core 165 | . 46 8 74 37 Absorbed by Shields . | . . . . . Ignored by Resistances 417 | . 74 22 138 183 Core Remaining (%) 89 | 100 . 78 . . Volleys Fired 156 | 12 37 11 44 52 Largest 2 | 2 2 2 2 2 Hottest 80 | 40 40 80 80 46 Shots Fired 289 | 24 73 18 79 95 Gun 263 | 24 73 11 60 95 Cannon 26 | . . 7 19 . Launcher . | . . . . . Special . | . . . . . Kinetic 263 | 24 73 11 60 95 Thermal 26 | . . 7 19 . Explosive . | . . . . . Electromagnetic . | . . . . . Robot Hit Streak 31 | 13 18 19 30 31 Robot Miss Streak 3 | 1 2 2 3 2 Penetration Max . | . . . . . Secondary Targets 4 | . 2 . 1 1 Max Gunslinging Chain 1 | . 1 . 1 1 Shots Hit Robots 227 | 17 58 13 61 78 Core Hits 124 | 9 24 9 31 51 Critical Kills 2 | . 1 . 1 . Critical Parts Destroyed 1 | . . . 1 . Critical Strikes 3 | . 1 . 2 . Meltdown 1 | . . . 1 . Destroy 2 | . 1 . 1 . Melee Attacks . | . . . . . Impact . | . . . . . Slashing . | . . . . . Piercing . | . . . . . Sneak Attacks . | . . . . . Combat Hostiles . | . . . . . Follow-up Attacks . | . . . . . Damage Inflicted 3732 | 225 737 285 1008 1477 Guns 3258 | 225 737 107 712 1477 Cannons 383 | . . 87 296 . Explosions 91 | . . 91 . . Melee . | . . . . . Ramming . | . . . . . Kinetic 3258 | 225 737 107 712 1477 Thermal 474 | . . 178 296 . Explosive . | . . . . . Electromagnetic . | . . . . . Impact . | . . . . . Slashing . | . . . . . Piercing . | . . . . . Highest Corruption . | . . . . . Average Corruption . | . . . . . Corruption Purged . | . . . . . Corruption Blocked . | . . . . . Overload Shots . | . . . . . Overflow Damage . | . . . . . Projectiles . | . . . . . Explosions . | . . . . . Melee . | . . . . . Knockbacks . | . . . . . Impact . | . . . . . Kinetic . | . . . . . Secondary . | . . . . . Self-Inflicted Damage . | . . . . . Shots . | . . . . . Rammed . | . . . . . Targets Rammed . | . . . . . Kicked . | . . . . . Crushed . | . . . . . Highest Temperature 108 | . 8 108 . . Average Temperature 34 | . 3 42 . . Received Heat Transfer 654 | . 132 51 165 306 Siege Activations . | . . . . . Martial Activations . | . . . . . Shielding Activations . | . . . . . Robots Disrupted . | . . . . . Combat Hostiles . | . . . . . Robots Corrupted . | . . . . . Combat Hostiles . | . . . . . Parts Fried . | . . . . . Impact Corruptions . | . . . . . Robots Melted 1 | . . . 1 . Combat Hostiles 1 | . . . 1 . Parts Melted 2 | . . . 2 . Heat Transferred 964 | . . 335 629 . Parts Sabotaged . | . . . . . Parts Stolen . | . . . . . Parts Stripped . | . . . . . Power Chain Reactions . | . . . . . Alert | -11 -10 -10 -9 -9 ------- Run | Yrd Mat Min Mat Sto Maximum Alert Level 1 | . . . . 1 Low Security (%) 99 | 100 100 100 100 99 Level 1 . | . . . . . Level 2 . | . . . . . Level 3 . | . . . . . Level 4 . | . . . . . Level 5 . | . . . . . High Security . | . . . . . Max Security . | . . . . . Peak Influence 207 | 20 74 184 155 207 Initial 41 | . . . 17 41 Average 56 | 4 16 57 56 117 Influence Increases 1641 | 40 310 249 472 570 Destroy 0b10 Robot/C 1040 | . 200 100 360 380 Destroy 0b10 Robot/NC 150 | 40 35 15 15 45 Destroy Leader 232 | . 36 20 82 94 Successful Hack 55 | . 38 . . 17 Disable Machine 81 | . . 81 . . Destroy Structure 38 | . 1 33 . 4 Lose Combat Pursuer 45 | . . . 15 30 Influence Decreases 1530 | 40 310 195 411 574 Entered New Map 111 | . . . 37 74 Time Decay 1379 | 40 300 195 364 480 Lost Part 40 | . 10 . 10 20 Squads Dispatched 7 | . . . 1 6 Investigation 2 | . . . 1 1 Extermination . | . . . . . Reinforcement 2 | . . . . 2 Assault . | . . . . . Garrison 3 | . . . . 3 Intercept . | . . . . . Searches Triggered . | . . . . . Construction Impeded 1 | . . . . 1 Haulers Reinforced . | . . . . . Active Scanning Responses . | . . . . . Cargo Convoy Interrupts . | . . . . . Stealth | -11 -10 -10 -9 -9 --------- Run | Yrd Mat Min Mat Sto Distress Signals 1 | . 1 . . . Communications Jammed . | . . . . . Distress Signals . | . . . . . Times Spotted 70 | . 17 7 23 23 Peak Tracking Total 5 | . 5 2 5 4 Tactical Retreats 2 | . . . 1 1 Traps | -11 -10 -10 -9 -9 ------- Run | Yrd Mat Min Mat Sto Traps Triggered 8 | . 4 . 2 2 Indirectly . | . . . . . Trap Hack Attempts . | . . . . . Triggered . | . . . . . Disarmed . | . . . . . Reprogrammed . | . . . . . Reused . | . . . . . Traps Extracted . | . . . . . Installed . | . . . . . Triggered . | . . . . . Machines | -11 -10 -10 -9 -9 ---------- Run | Yrd Mat Min Mat Sto Machines Disabled 9 | . . 9 . . Max in Single Turn 9 | . . 9 . . Machines Repaired . | . . . . . Machines Dismantled . | . . . . . Machines Sabotaged . | . . . . . Overloaded Fab Kills . | . . . . . Hacking | -11 -10 -10 -9 -9 --------- Run | Yrd Mat Min Mat Sto Machines Accessed 15 | . 8 . 3 4 Terminals 11 | . 5 . 3 3 Fabricators . | . . . . . Repair Stations 1 | . 1 . . . Recycling Units 3 | . 2 . . 1 Scanalyzers . | . . . . . Garrison Access . | . . . . . Total Hacks 40 | . 24 . 4 12 Successful 26 | . 17 . 4 5 Failed 14 | . 7 . . 7 Catastrophic 1 | . . . . 1 Database Lockouts . | . . . . . Manual 1 | . . . . 1 Terminals 31 | . 16 . 4 11 Fabricators . | . . . . . Repair Stations 3 | . 3 . . . Recycling Units 6 | . 5 . . 1 Scanalyzers . | . . . . . Garrison Access . | . . . . . Terminal Hacks 21 | . 13 . 4 4 Record 5 | . 3 . 2 . Part Schematic 2 | . . . . 2 Robot Analysis 1 | . 1 . . . Prototype ID Bank 1 | . . . 1 . Open Door 1 | . . . . 1 Emergency Access Points 1 | . 1 . . . Terminal Index 1 | . 1 . . . Scanalyzer Index 1 | . 1 . . . Locate Traps 2 | . 1 . . 1 Dispatch Records 2 | . 1 . 1 . Transport Status 1 | . 1 . . . Hauler Manifests 1 | . 1 . . . Registered Prototypes 1 | . 1 . . . Zone Layout 1 | . 1 . . . Fabricator Hacks . | . . . . . Repair Station Hacks 1 | . 1 . . . Refit 1 | . 1 . . . Recycling Unit Hacks 4 | . 3 . . 1 Report Inventory 3 | . 2 . . 1 Retrieve Components 1 | . 1 . . . Scanalyzer . | . . . . . Garrison Access Hacks . | . . . . . Unauthorized Hacks . | . . . . . Terminals . | . . . . . Fabricators . | . . . . . Repair Stations . | . . . . . Recycling Units . | . . . . . Scanalyzers . | . . . . . Garrison Access . | . . . . . Data Cores Recovered 1 | . . . 1 . Used . | . . . . . Hacking Detections 12 | . 6 . 2 4 Full Trace Events 4 | . 3 . . 1 Feedback Events . | . . . . . Feedback Blocked . | . . . . . Robot Schematics Acquired . | . . . . . Robots Built . | . . . . . Authchips . | . . . . . Time . | . . . . . Total Robot Build Rating . | . . . . . Part Schematics Acquired 2 | . . . . 2 Parts Built . | . . . . . Authchips . | . . . . . Time . | . . . . . Total Part Build Rating . | . . . . . Part Studies Acquired . | . . . . . Parts Repaired . | . . . . . Time . | . . . . . Parts Recycled . | . . . . . Recycled Matter . | . . . . . Retrieved Matter . | . . . . . Retrieved Components 7 | . 7 . . . Parts Scanalyzed . | . . . . . Part Schematics Acquired . | . . . . . Parts Damaged . | . . . . . Bothacking | -11 -10 -10 -9 -9 ------------ Run | Yrd Mat Min Mat Sto Used RIF Installer . | . . . . . Robots Hacked . | . . . . . Non-combat . | . . . . . Combat . | . . . . . Robot Hacks Applied . | . . . . . Relay Couplers Released . | . . . . . Fabnet Peak Effective % . | . . . . . Robots Rewired . | . . . . . Allies Hacked . | . . . . . Hacks Repelled . | . . . . . Allies | -11 -10 -10 -9 -9 -------- Run | Yrd Mat Min Mat Sto Total Allies . | . . . . . Largest Group . | . . . . . Highest-Rated Group . | . . . . . Highest-Rated Ally . | . . . . . Total Orders . | . . . . . Ally Attacks . | . . . . . Total Damage . | . . . . . Kills . | . . . . . Allies Corrupted . | . . . . . Allies Melted . | . . . . . Intel | -11 -10 -10 -9 -9 ------- Run | Yrd Mat Min Mat Sto Active Infowar (turns) 1843 | . . 74 793 976 Seismic 1843 | . . 74 793 976 Robot Analysis Total 1 | . 1 . . . Derelict Logs Recovered 1 | . . 1 . . Drone Launches . | . . . . . Drone Recoveries . | . . . . . Exploration | -11 -10 -10 -9 -9 ------------- Run | Yrd Mat Min Mat Sto Turns Passed 3781 | 187 1245 580 793 976 Spaces Moved 1630 | 83 634 288 364 261 Core 6 | 4 2 . . . Treads 1130 | 79 503 . 287 261 Legs 494 | . 129 288 77 . Wheels . | . . . . . Hover . | . . . . . Flight . | . . . . . Fastest Speed 50 | 50 160 190 160 160 Average Speed 181 | 154 167 190 166 237 Slowest Speed 450 | 160 450 190 190 320 Overloaded Moves . | . . . . . Propulsion Burnouts . | . . . . . Robots Hopped . | . . . . . Potential Cave-ins . | . . . . . Cave-ins Triggered . | . . . . . Exploration Rate (%) 43 | 3 96 55 32 33 Regions Visited 4 Branch Regions 2 Pre-discovered Areas . | . . . . . Known Exits Taken . | . . . . . Unknown Exits Taken 4 | 1 1 1 1 . Scrap Searched 1 | . . 1 . . Spaces Dug . | . . . . . Terrain Destroyed 42 | . . 42 . . Melee . | . . . . . Projectile . | . . . . . AOE 42 | . . 42 . . Terrain Rammed . | . . . . . Walls Destroyed . | . . . . . Machines Disabled . | . . . . . Actions | -11 -10 -10 -9 -9 --------- Run | Yrd Mat Min Mat Sto Total 2166 | 118 745 307 475 521 Wait 271 | 2 49 . 32 188 Move 1626 | 82 633 287 363 261 Hop . | . . . . . Pick Up 50 | 13 14 5 12 6 Fast Attach . | . . . . . Attach 23 | 8 7 1 4 3 Detach 2 | 1 1 . . . Swap 20 | . 4 . 11 5 Drop 18 | . . 3 9 6 Fire 156 | 12 37 11 44 52 Melee . | . . . . . Ram . | . . . . . Kick . | . . . . . Crush . | . . . . . Escape Stasis . | . . . . . Rewire . | . . . . . Trap . | . . . . . Miscellaneous . | . . . . . Route ------- -11/Scrapyard -10/Materials (discovered 5 exits: *Mat x3 / [*Min] / [*Sub]) -10/Mines -9/Materials (discovered 2 exits: Mat / *Sto) -9/Storage History --------- Turn | Location | Event 5 | -11/Scrapyard | Discovered new exit (range 16) 188 | -11/Scrapyard | Entered Materials 306 | -10/Materials | Build established: Mutant 503 | -10/Materials | Discovered new exit (range 10) 691 | -10/Materials | Discovered new exit (range 9) 994 | -10/Materials | Discovered new exit (range 6) 1135 | -10/Materials | Discovered new exit (range 7) 1404 | -10/Materials | Discovered new exit (range 11) 1433 | -10/Materials | Entered Mines 1434 | -10/Mines | Assembled infested the area 1439 | -10/Mines | Assisted by a Guerilla fighting off Assembled 1814 | -10/Mines | Discovered new exit (range 6) 1851 | -10/Mines | Learned 4 Materials zone layouts 2013 | -10/Mines | Entered Materials 2013 | -9/Materials | Evolved 2 slots: Utility x2 2014 | -9/Materials | Identified exit to Materials 2575 | -9/Materials | Discovered new exit (range 13) 2806 | -9/Materials | Entered Storage 2945 | -9/Storage | Build established: Scavenger-Mutant 2980 | -9/Storage | Garrison activated, responded to threat 3050 | -9/Storage | Destroyed 8 combat bots 3658 | -9/Storage | Build established: Mutant 3782 | -9/Storage | Self-destructed Last Messages --------------- 03581_ Acquired 112 matter. 03584_ K-01 Serf collects debris. 03585_ Acquired Lgt. Armor Plating. 03587_ K-01 Serf collects debris. 03589_ K-01 Serf destroyed. 03590_ Acquired 19 matter. 03592_ R-06 Scavenger collects Aluminum Leg. 03595_ R-06 Scavenger destroyed. 03597_ Acquired 23 matter. 03691_ Lgt. Treads destroyed. 03731_ Y-45 Defender destroyed. 03735_ K-01 Serf collects debris. 03740_ Y-45 Defender destroyed. 03741_ Acquired 48 matter. 03742_ K-01 Serf collects debris. 03746_ Destroyed Sml. Matter Pod. 03751_ Acquired Lgt. Treads. 03753_ Acquired 38 matter. 03771_ R-06 Scavenger collects Broken Lgt. Treads. Map ----- +----------------------------------------------------+ | ################+######*################# # | | ??##????????# ##%#???????????????#####+#### | | ????????????# ## #?????????????????## #?# | | ????????????# ## ######????????????#T #?# | | ????????????#""" ##%#!"!!#????????????## #?# | | ????????????#""" ##%#=!!!#?????????????#] [#?? | | ????????????#""" ## +="!!#?????????????#] [#?? | | ????????????#""" ## #T####?????????????#] [#?? | | ??????????????"" ##=###????????????????#] [#?? | | ??????????????? ## #???????########???#####?? | | ???????????????######## #???????# #?????????? | | ??????????????????????#k#??###### #?????????? | | ??????????????????????# #??# + #?????????? | | ??????????????????????# #??#[ # #?????????? | | ??????????????????????#r#### [ # #?????????? | | ??????????????????????# ![% ! + #?????????? | | ??????????????????????# *##############?????????? | | ??????????????????????# #??????????????????????? | | ??????????????????????#| #??????????????????????? | | ??????????????????????#%= #??????????????????????? | | ??????????????????????#!* #??????????????????????? | | ??????????????????????# #??????????????????????? | | ??????????????????????# #??????????????????????? | | ??????????????????????# a#??????????????????????? | | ?????????????????###+## #??????????????????????? | | ?????????? @#??????????????????????? | | ?????????? a#??????????????????????? | | ??????????m ??????????????????????? | | ???????????######+##### ??????????????????????? | | ??????????????? ?????# k ?????????????????????? | | ??????????????#???????# ##?????????????????????? | | ??????????????????????# #??????????????????????? | | ??????????????????????# #??????????????????????? | | ??????????????????????# #??????????????????????? | | ??????????????????????# #??????????????????????? | | ?????????????????????? ???????????????????????? | | ?????????????????????? ???????????????????????? | | ?????????????????????? ???????????????????????? | | ?????????????????????? ???????????????????????? | | ?????????????????????# u ???????????????????????? | | ???????????????????????# #???????????????????????? | | ?????????????????????????????????????????????????? | | ?????????????????????????????????????????????????? | | ?????????????????????????????????????????????????? | | ?????????????????????????????????????????????????? | | ?????????????????????????????????????????????????? | | ?????????????????????????????????????????????????? | | ?????????????????????????????????????????????????? | | ?????????????????????????????????????????????????? | | ?????????????????????????????????????????????????? | +----------------------------------------------------+ Best States ------------- Heat Dissipation 50 Energy Generation 14 Energy Capacity 280 Matter Stores 300 Matter Capacity 300 Sight Range 16 Terrain Scan Density 10 Armor Coverage 225 Resistance: KI 20 Resistance: TH 20 Resistance: EX 20 Resistance: EM 20 Resistance: I 20 Resistance: S 20 Resistance: P 20 Evasion (%) 40 Recoil Reduction 2 Offensive Hacking 10 Item Schematics ----------------- Proton Missile Launcher | -9/Storage | Hacked Adv. Treads | -9/Storage | Hacked Robot Schematics ------------------ None Fabricated ------------ Nothing Repaired ---------- Nothing Studied --------- None Alien Tech Used ----------------- None Achievements -------------- Fitting Room Challenges ------------ None Game ------ Seed DeepDefenseMatter Manual? 0 Play Time 01:02:44 Cumulative 15.8 hours Start 2026.03.02 @ 13:46:11 End 2026.03.08 @ 15:14:17 Sessions 5 Manual Loads 0 Difficulty Adventurer Special Mode None Game No. 17 Rogue 11 Adventurer 6 Explorer 0 Win Type - Total 0 Types 0/0/0/0/0/0/0/0/0/0 Lore% 8 Gallery% 10 Achievement% 10 Wizard Run 0 Options --------- Layout 1 ASCII 0 Keyboard 0 Movement Mouse Keybinds 0 Fullscreen 1 Font 24/Smallcaps Map View 50x35 Zoom Use 18% Tactical HUD 1 Map Filters NONE Filters NONE Steam 1 RUN: f89ef3cf-dd3c-45e2-9e9a-5a055a2d4685